Cogmind - Beta 12 @@@ ROGUE MODE // 2023.04.16 @ 22:52:56 Player: Red Box Result: Self-destructed Performance ------------- Evolutions (1) 500 Regions Visited (5) 1000 Robots Destroyed (88) 440 Value Destroyed (2090) 2090 Prototype IDs (8) 160 Alien Tech Used (0) 0 Bonus (163) 163 TOTAL SCORE: 4353 Bonus ------- High Alert Combat Kills 163 Cogmind --------- Core Integrity 240/400 Matter 280/300 Energy 280/280 System Corruption 4% Temperature Cool (0) Movement Rolling (205) Ox7 Location -9/Exiles Parts ------- > --- POWER (1) -------- Cooled Ion Engine > --- PROPULSION (2) --- Compact Wheel (fused) Compact Wheel > --- UTILITY (4) ------ Humpback Hardlight Generator > --- WEAPON (2) ------- Guided Plasma Cannon (fused) Makeshift Axe > --- INVENTORY (35) --- Fission Core Improved Treads Armored Wheel Armored Wheel Improved Heat Sink High-capacity Storage Unit Compact Battery (200) Makeshift Terrain Scanner Makeshift Terrain Scan Processor Improved Targeting Computer Hardened Medium Armor Plating Hardened Medium Armor Plating Hardened Medium Armor Plating Hardened Medium Armor Plating Trap Extractor (4/4 Blade) Bomb Drone Bay (16/16) Spread Laser Spread Laser Ion Cannon Assault Cannon Assault Cannon Rocket Launcher Dirty Bomb Trap Peak State ------------ > --- POWER ------------ Cooled Ion Engine > --- PROPULSION ------- Compact Wheel Compact Wheel > --- UTILITY ---------- Improved Heat Sink High-capacity Storage Unit Hardened Medium Armor Plating Hardlight Generator > --- WEAPON ----------- Guided Plasma Cannon Makeshift Axe > --- INVENTORY -------- Fission Core Improved Treads Armored Wheel Armored Wheel Compact Battery Improved Targeting Computer Hardened Medium Armor Plating Hardened Medium Armor Plating Hardened Medium Armor Plating Authchip [Storage] Trap Extractor Bomb Drone Bay Spread Laser Spread Laser Ion Cannon Assault Cannon Assault Cannon Rocket Launcher Dirty Bomb Trap [Rating: 33] Favorites ----------- Power Cooled Ion Engine Engine Cooled Ion Engine Power Core Fission Core Propulsion Compact Wheel Treads Light Treads Leg Aluminum Leg Wheel Compact Wheel Utility Improved Heat Sink Device Improved Heat Sink Storage High-capacity Storage Unit Processor Terrain Scan Processor Protection Medium Armor Plating Weapon Spread Laser Energy Gun Spread Laser Energy Cannon Guided Plasma Cannon Ballistic Gun Light Assault Rifle Launcher Rocket Launcher Impact Weapon Mace Slashing Weapon Makeshift Axe Special Melee Weapon Datajack Build | -11 -10 -10 -9 -9 -9 ------- Run | Jun Mat Min Mat Min Exi Slots Evolved 2 | . . . 2 . . Power . | . . . . . . Propulsion . | . . . . . . Utility 2 | . . . 2 . . Weapon . | . . . . . . Parts Attached 89 | 15 11 9 42 7 5 Power 9 | 1 1 3 4 . . Engine 6 | 1 1 1 3 . . Core 3 | . . 2 1 . . Reactor . | . . . . . . Propulsion 20 | 6 4 4 3 3 . Treads 1 | . . 1 . . . Leg 2 | 2 . . . . . Wheel 17 | 4 4 3 3 3 . Hover . | . . . . . . Flight . | . . . . . . Utility 35 | 4 2 2 22 4 1 Device 23 | 3 1 2 15 2 . Storage 4 | 1 1 . 1 . 1 Processor 2 | . . . 2 . . Hackware . | . . . . . . Protection 6 | . . . 4 2 . Artifact . | . . . . . . Weapon 25 | 4 4 . 13 . 4 Energy Gun 13 | . 4 . 9 . . Energy Cannon 1 | . . . . . 1 Ballistic Gun 4 | 4 . . . . . Ballistic Cannon . | . . . . . . Launcher 2 | . . . 2 . . Special Weapon . | . . . . . . Impact Weapon 1 | . . . . . 1 Slashing Weapon 1 | . . . . . 1 Piercing Weapon . | . . . . . . Special Melee Weapon 3 | . . . 2 . 1 Unidentified Prototypes 1 | . . . . . 1 Parts Lost 9 | . 2 2 5 . . Power 3 | . 1 1 1 . . Propulsion 3 | . 1 . 2 . . Utility 2 | . . 1 1 . . Weapon 1 | . . . 1 . . Highest Loss Streak 3 | . 1 1 3 . . To Critical Strikes . | . . . . . . Average Slot Usage (%) 99 | . 99 99 99 99 98 Engine 10 | . 14 7 8 11 11 Core 1 | . . 6 2 . . Wheel 23 | . 27 27 21 22 22 Device 18 | . 14 13 18 22 21 Storage 11 | . 14 14 11 11 11 Processor 1 | . . . 3 . . Protection 7 | . . . 10 10 10 Energy Gun 20 | . 27 28 20 22 . Naked Turns . | . . . . . . Heaviest Build 226 | 13 32 32 68 68 226 Greatest Support 32 | 20 32 32 32 32 32 Greatest Overweight (x) 7 | 2 1 1 6 3 7 Average Overweight (x) 1 | . . . 2 2 2 Largest Inventory Capacity 35 | 8 15 15 20 20 35 Average Capacity 17 | 7 14 15 17 20 21 Most Carried 24 | 8 15 15 20 20 24 Average Carried 16 | 6 12 14 17 19 20 Final Capacity 35 | 8 15 15 20 20 35 Final Carried 24 | 8 15 15 20 20 24 Class Distribution -------------------- 82% | Mutant 17% | Scavenger-Mutant Dominant Class ---------------- Mutant | -10/Materials Mutant | -10/Mines Mutant | -9/Materials Mutant | -9/Mines Mutant | -9/Exiles Resources | -11 -10 -10 -9 -9 -9 ----------- Run | Jun Mat Min Mat Min Exi Matter Collected 1331 | 414 71 124 589 93 40 Remotely . | . . . . . . Salvage Created 2412 | 220 329 63 1274 481 45 Parts 153 | 17 23 . 90 21 2 Haulers Intercepted 5 | . 1 . 4 . . Recyclers Shooed 2 | . . . 2 . . Parts Field Recycled . | . . . . . . Retrieved Matter . | . . . . . . Parts Self-Destructed . | . . . . . . Prevented . | . . . . . . Kills | -11 -10 -10 -9 -9 -9 ------- Run | Jun Mat Min Mat Min Exi Combat Hostiles Destroyed 72 | . 11 13 38 10 . Guns 66 | . 11 13 32 10 . AOE 6 | . . . 6 . . Classes Destroyed 14 | 2 4 1 6 1 . Worker 1 | . . . 1 . . Builder 1 | . . . 1 . . Tunneler 7 | 7 . . . . . Hauler 5 | . 1 . 4 . . Recycler 6 | 1 . . 2 3 . Operator 1 | . . . 1 . . Watcher 8 | . 3 . 5 . . Swarmer 16 | . 3 . 10 3 . Grunt 30 | . 8 . 17 5 . Brawler 1 | . . . 1 . . Duelist 2 | . . . . 2 . Protector 1 | . . . 1 . . Sentry 9 | . . . 9 . . Assembled 13 | . . 13 . . . Best Kill Streak 8 | 2 4 6 8 3 . Combat Bots Only 6 | . 3 6 6 3 . Max Kills in Single Turn 4 | 1 2 1 4 1 . Gunslinging 1 | . 1 . 1 . . Exploded 2 | . . . 2 . . Melee . | . . . . . . Uniques/NPCs Destroyed . | . . . . . . Combat | -11 -10 -10 -9 -9 -9 -------- Run | Jun Mat Min Mat Min Exi Damage Taken 1873 | . 358 375 913 227 . Core 353 | . 93 100 118 42 . Absorbed by Shields 288 | . . . 200 88 . Regen/Repaired (Parts) 179 | . 34 . 145 . . Core Remaining (%) 61 | 100 . 22 . . . Volleys Fired 192 | 27 30 24 83 26 2 Largest 2 | 2 2 2 2 2 1 Hottest 130 | 40 130 130 130 130 120 Shots Fired 378 | 54 60 48 161 53 2 Gun 371 | 54 60 48 156 53 . Cannon 2 | . . . . . 2 Launcher 5 | . . . 5 . . Special . | . . . . . . Kinetic 54 | 54 . . . . . Thermal 319 | . 60 48 156 53 2 Explosive 5 | . . . 5 . . Electromagnetic . | . . . . . . Robot Hit Streak 22 | 8 14 6 22 11 3 Robot Miss Streak 14 | 4 7 11 14 6 . Penetration Max . | . . . . . . Secondary Targets 6 | . 2 3 1 . . Max Gunslinging Chain 1 | . 1 1 1 . . Shots Hit Robots 326 | 31 53 46 141 47 8 Core Hits 403 | 14 69 69 190 60 1 Critical Kills 1 | 1 . . . . . Critical Parts Destroyed . | . . . . . . Critical Strikes 1 | 1 . . . . . Destroy 1 | 1 . . . . . Melee Attacks 6 | . . . . . 6 Impact . | . . . . . . Slashing . | . . . . . . Piercing . | . . . . . . Sneak Attacks 5 | . . . . . 5 Combat Hostiles 5 | . . . . . 5 Follow-up Attacks . | . . . . . . Damage Inflicted 5064 | 266 661 536 2905 600 96 Guns 3888 | 266 661 536 1825 600 . Cannons 96 | . . . . . 96 Explosions 1080 | . . . 1080 . . Melee . | . . . . . . Ramming . | . . . . . . Kinetic 266 | 266 . . . . . Thermal 3931 | . 661 536 2038 600 96 Explosive 867 | . . . 867 . . Electromagnetic . | . . . . . . Impact . | . . . . . . Slashing . | . . . . . . Piercing . | . . . . . . Highest Corruption 4 | . . . 4 4 4 Average Corruption 3 | . . . 3 4 4 Corruption Purged . | . . . . . . Corruption Blocked . | . . . . . . Effects 84 | . . . 51 23 10 Message Errors 29 | . . . 13 10 6 Matter Fused 18 | . . . 14 4 . Heat Flow Errors 11 | . . . 9 1 1 Energy Discharges 10 | . . . 7 2 1 Parts Fused 2 | . . . . . 2 Data Loss (minor) 7 | . . . 5 2 . Data Loss (major) 2 | . . . . 2 . Misfires 2 | . . . 1 1 . Alerts 2 | . . . 1 1 . Weapon Failures 1 | . . . 1 . . Overload Shots . | . . . . . . Overflow Damage 27 | . . . 17 . 10 Projectiles 10 | . . . . . 10 Explosions 17 | . . . 17 . . Melee . | . . . . . . Knockbacks . | . . . . . . Impact . | . . . . . . Kinetic . | . . . . . . Secondary . | . . . . . . Self-Inflicted Damage 126 | . . . 126 . . Shots 2 | . . . 2 . . Rammed . | . . . . . . Targets Rammed . | . . . . . . Kicked . | . . . . . . Crushed . | . . . . . . Highest Temperature 477 | . 365 135 477 154 156 Average Temperature 90 | . 96 48 106 52 67 Received Heat Transfer 497 | . 168 . 281 48 . Effects 4 | . 1 . 3 . . Shutdowns 2 | . 1 . 1 . . Energy Bleed 2 | . . . 2 . . Siege Activations . | . . . . . . Robots Corrupted . | . . . . . . Combat Hostiles . | . . . . . . Parts Fried . | . . . . . . Impact Corruptions . | . . . . . . Robots Melted . | . . . . . . Combat Hostiles . | . . . . . . Parts Melted 2 | . . . 2 . . Heat Transferred 4780 | . 840 655 2365 760 160 Parts Sabotaged . | . . . . . . Parts Stolen . | . . . . . . Parts Stripped . | . . . . . . Power Chain Reactions . | . . . . . . Missiles Intercepted . | . . . . . . Alert | -11 -10 -10 -9 -9 -9 ------- Run | Jun Mat Min Mat Min Exi Peak Influence 804 | 40 329 63 804 397 . Initial 277 | . 26 63 . 277 . Average 285 | 20 172 25 442 252 . Maximum Alert Level 3 | . 1 . 3 1 . Low Security (%) 48 | 100 61 100 27 36 . Level 1 27 | . 38 . 20 63 . Level 2 4 | . . . 10 . . Level 3 19 | . . . 41 . . Level 4 . | . . . . . . Level 5 . | . . . . . . High Security . | . . . . . . Max Security . | . . . . . . Squads Dispatched 9 | . 5 . 4 . . Investigation 6 | . 4 . 2 . . Extermination . | . . . . . . Reinforcement 2 | . 1 . 1 . . Assault 1 | . . . 1 . . Garrison . | . . . . . . Intercept . | . . . . . . Searches Triggered . | . . . . . . Construction Impeded . | . . . . . . Haulers Reinforced . | . . . . . . Active Scanning Responses . | . . . . . . Cargo Convoy Interrupts . | . . . . . . Stealth | -11 -10 -10 -9 -9 -9 --------- Run | Jun Mat Min Mat Min Exi Distress Signals 2 | . 1 . 1 . . Communications Jammed . | . . . . . . Distress Signals . | . . . . . . Times Spotted 100 | . 18 19 53 10 . Peak Tracking Total 9 | . 4 9 5 3 . Tactical Retreats 6 | . 1 3 2 . . Traps | -11 -10 -10 -9 -9 -9 ------- Run | Jun Mat Min Mat Min Exi Traps Triggered 4 | . 2 . 2 . . Indirectly . | . . . . . . Trap Hack Attempts 80 | . . . 80 . . Triggered 1 | . . . 1 . . Disarmed . | . . . . . . Reprogrammed 8 | . . . 8 . . Reused 3 | . . . 3 . . Traps Extracted 6 | . . . 5 1 . Installed 1 | . . . . 1 . Triggered 3 | . . . 3 . . Most Traps Carried 5 | . . . 5 5 5 Machines | -11 -10 -10 -9 -9 -9 ---------- Run | Jun Mat Min Mat Min Exi Machines Disabled 4 | . . . 4 . . Max in Single Turn 3 | . . . 3 . . Machines Repaired . | . . . . . . Machines Sabotaged . | . . . . . . Overloaded Fab Kills . | . . . . . . Hacking | -11 -10 -10 -9 -9 -9 --------- Run | Jun Mat Min Mat Min Exi Machines Accessed 27 | . 10 1 15 . 1 Terminals 16 | . 7 . 9 . . Fabricators . | . . . . . . Repair Stations 3 | . 1 . 2 . . Recycling Units 4 | . 2 . 2 . . Scanalyzers 2 | . . . 2 . . Garrison Access . | . . . . . . Total Hacks 99 | . 40 1 57 . 1 Successful 63 | . 28 1 33 . 1 Failed 35 | . 12 . 23 . . Catastrophic 3 | . . . 3 . . Database Lockouts 1 | . . . 1 . . Manual 45 | . 28 . 16 . 1 Terminals 59 | . 30 . 29 . . Fabricators . | . . . . . . Repair Stations 9 | . 2 . 7 . . Recycling Units 15 | . 8 . 7 . . Scanalyzers 14 | . . . 14 . . Garrison Access . | . . . . . . Terminal Hacks 22 | . 13 1 7 . 1 Record 1 | . . . . . 1 Robot Analysis 10 | . 7 . 3 . . Prototype ID Bank 3 | . 2 . 1 . . Open Door 1 | . . 1 . . . Terminal Index 1 | . . . 1 . . Locate Traps 3 | . 2 . 1 . . Recall Investigation 1 | . 1 . . . . Hauler Manifests 2 | . 1 . 1 . . Fabricator Hacks . | . . . . . . Repair Station Hacks 8 | . 2 . 6 . . Scan Component 4 | . 1 . 3 . . Repair 4 | . 1 . 3 . . Recycling Unit Hacks 5 | . 2 . 3 . . Report Inventory 4 | . 2 . 2 . . Retrieve Components 1 | . . . 1 . . Scanalyzer 11 | . . . 11 . . Insert Component 6 | . . . 6 . . Analyze 5 | . . . 5 . . Garrison Access Hacks . | . . . . . . Unauthorized Hacks 17 | . 11 . 6 . . Terminals 10 | . 6 . 4 . . Track 2 | . 2 . . . . Assimilate 1 | . . . 1 . . Botnet 5 | . 3 . 2 . . Operators 2 | . 1 . 1 . . Fabricators . | . . . . . . Repair Stations . | . . . . . . Recycling Units 7 | . 5 . 2 . . Reject 1 | . 1 . . . . Recyclers 1 | . 1 . . . . Mask 2 | . 1 . 1 . . Tunnel 3 | . 2 . 1 . . Scanalyzers . | . . . . . . Garrison Access . | . . . . . . Data Cores Recovered . | . . . . . . Used . | . . . . . . Hacking Detections 23 | . 9 . 14 . . Full Trace Events 2 | . 1 . 1 . . Feedback Events . | . . . . . . Feedback Blocked . | . . . . . . Robot Schematics Acquired . | . . . . . . Robots Built . | . . . . . . Authchips . | . . . . . . Time . | . . . . . . Total Robot Build Rating . | . . . . . . Part Schematics Acquired 4 | . . . 4 . . Parts Built . | . . . . . . Authchips . | . . . . . . Time . | . . . . . . Total Part Build Rating . | . . . . . . Parts Repaired 4 | . 1 . 3 . . Time 146 | . 26 . 120 . . Parts Recycled . | . . . . . . Recycled Matter . | . . . . . . Retrieved Matter . | . . . . . . Retrieved Components 2 | . . . 2 . . Parts Scanalyzed 4 | . . . 4 . . Part Schematics Acquired 4 | . . . 4 . . Parts Damaged . | . . . . . . Bothacking | -11 -10 -10 -9 -9 -9 ------------ Run | Jun Mat Min Mat Min Exi Used RIF Installer . | . . . . . . Robots Hacked . | . . . . . . Non-combat . | . . . . . . Combat . | . . . . . . Robot Hacks Applied . | . . . . . . Relay Couplers Released . | . . . . . . Fabnet Peak Effective % . | . . . . . . Robots Rewired 3 | . . . . . 3 Allies Hacked . | . . . . . . Hacks Repelled . | . . . . . . Allies | -11 -10 -10 -9 -9 -9 -------- Run | Jun Mat Min Mat Min Exi Total Allies 5 | . . 2 . . 3 Largest Group 3 | . . 2 . . 3 Highest-Rated Group 50 | . . 42 . . 50 Highest-Rated Ally 31 | . . 31 . . 21 Total Orders . | . . . . . . Ally Attacks 2 | . . 2 . . . Total Damage 41 | . . 41 . . . Kills . | . . . . . . Allies Corrupted . | . . . . . . Allies Melted . | . . . . . . Intel | -11 -10 -10 -9 -9 -9 ------- Run | Jun Mat Min Mat Min Exi Robot Analysis Total 10 | . 7 . 3 . . Derelict Logs Recovered 6 | . . 3 . 3 . Drone Launches . | . . . . . . Drone Recoveries . | . . . . . . Exploration | -11 -10 -10 -9 -9 -9 ------------- Run | Jun Mat Min Mat Min Exi Turns Passed 7349 | 271 1145 912 3047 1198 776 Spaces Moved 4982 | 144 932 750 1718 879 559 Core 13 | 13 . . . . . Treads 1 | . . 1 . . . Legs 106 | 106 . . . . . Wheels 4862 | 25 932 749 1718 879 559 Hover . | . . . . . . Flight . | . . . . . . Fastest Speed 50 | 50 80 100 105 120 115 Average Speed 114 | 112 94 100 120 123 133 Slowest Speed 240 | 150 100 240 170 130 205 Overloaded Moves . | . . . . . . Propulsion Burnouts . | . . . . . . Robots Hopped . | . . . . . . Cave-ins Triggered . | . . . . . . Exploration Rate (%) 81 | 6 99 99 99 99 89 Regions Visited 5 Branch Regions 3 Pre-discovered Areas 6 | . 2 1 1 1 1 Known Exits Taken . | . . . . . . Unknown Exits Taken 5 | 1 1 1 1 1 . Scrap Searched 4 | . . 2 . 2 . Spaces Dug . | . . . . . . Terrain Destroyed 49 | . . . 49 . . Melee . | . . . . . . Projectile . | . . . . . . AOE 49 | . . . 49 . . Terrain Rammed . | . . . . . . Walls Destroyed . | . . . . . . Machines Disabled . | . . . . . . Actions | -11 -10 -10 -9 -9 -9 --------- Run | Jun Mat Min Mat Min Exi Total 6268 | 205 1135 865 2537 941 585 Wait 803 | 7 140 65 566 25 . Move 4977 | 143 931 749 1717 878 559 Hop . | . . . . . . Pick Up 60 | 7 14 7 27 . 5 Fast Attach 25 | 9 2 2 7 2 3 Attach 15 | . 3 2 10 . . Detach 4 | . . 1 2 . 1 Swap 49 | 6 6 5 25 5 2 Drop 55 | 6 9 10 20 4 6 Fire 192 | 27 30 24 83 26 2 Melee 6 | . . . . . 6 Ram . | . . . . . . Kick . | . . . . . . Crush . | . . . . . . Escape Stasis . | . . . . . . Rewire 1 | . . . . . 1 Trap 81 | . . . 80 1 . Miscellaneous . | . . . . . . Route ------- -11/Junkyard -10/Materials (discovered 5 exits: *Mat x3 / *Min x2) -10/Mines (discovered 2 exits: *Mat x2) -9/Materials (discovered 5 exits: [*Mat x3] / [*Min x2]) -9/Mines (discovered 3 exits: [*Mat x2] / *Exi) -9/Exiles (discovered 1 exit: [*Min]) History --------- Turn | Location | Event 14 | -11/Junkyard | Discovered new exit (range 13) 272 | -11/Junkyard | Entered Materials 325 | -10/Materials | Build established: Mutant 480 | -10/Materials | Discovered new exit (range 6) 626 | -10/Materials | Discovered new exit (range 16) 864 | -10/Materials | Discovered new exit (range 12) 976 | -10/Materials | Discovered new exit (range 8) 1039 | -10/Materials | Repaired Wheel 1058 | -10/Materials | Discovered new exit (range 16) 1417 | -10/Materials | Entered Mines 1418 | -10/Mines | Met a Derelict bent on vengeance 1581 | -10/Mines | Discovered new exit (range 16) 1654 | -10/Mines | Assembled infested the area 1659 | -10/Mines | Assisted by a Guerilla fighting off Assembled 1666 | -10/Mines | Learned Materials emergency access door positions 1801 | -10/Mines | Core integrity fell below 50% 1870 | -10/Mines | Learned location of Mines (-8) 2001 | -10/Mines | Learned Materials garrison access intel 2148 | -10/Mines | Discovered new exit (range 9) 2154 | -10/Mines | Found the Drone Emporium 2158 | -10/Mines | Found Prototype Device 2329 | -10/Mines | Entered Materials 2329 | -9/Materials | Evolved 2 slots: Utility x2 2331 | -9/Materials | Discovered new exit (range 7) 2772 | -9/Materials | Discovered new exit (range 9) 2966 | -9/Materials | Lost 3 parts (1p1u1w) 3343 | -9/Materials | Discovered new exit (range 12) 3473 | -9/Materials | Repaired Spread Laser 3592 | -9/Materials | Discovered new exit (range 16) 3929 | -9/Materials | First assault squad dispatched 3955 | -9/Materials | Central database locked down 4152 | -9/Materials | Discovered new exit (range 8) 4252 | -9/Materials | Identified Bomb Drone Bay 4261 | -9/Materials | Repaired Fission Core? 5292 | -9/Materials | Repaired Hardlight Generator 5376 | -9/Materials | Entered Mines 5569 | -9/Mines | Learned Materials stockpile data 5781 | -9/Mines | Learned Materials emergency access door positions 5801 | -9/Mines | Discovered new exit (range 3) 5902 | -9/Mines | Discovered new exit (range 5) 5911 | -9/Mines | Deemed a non-threat by the Exiles lab entrance 5911 | -9/Mines | Discovered new exit (range 5) 6574 | -9/Mines | Entered Exiles 6574 | -9/Exiles | Found Exiles lab destroyed 6705 | -9/Exiles | Learned location of Zion (-6) 6769 | -9/Exiles | Opened EX-Vault 6776 | -9/Exiles | Found Prototype Energy Cannon 6776 | -9/Exiles | Identified Gui. Plasma Cannon 7157 | -9/Exiles | Discovered new exit (range 11) 7350 | -9/Exiles | Self-destructed Last Messages --------------- 06844_ 7LO&|68Y2U6CC1EZ&PS7PTN7RDCLU NV8F 06953_ Dropped Mace. 06959_ Acquired Mak. Axe. 06963_ /JL4I9MWL7:8T:R=N